bitfinex-derivatives/quotes_BTCF0:USTF0_20240929
["timestamp","ask_amount","ask_price","bid_price","bid_amount"]
[1727605483241,0.439092,65527.0,65526.0,0.30725397]
[1727605484242,0.439092,65527.0,65526.0,0.27405397]
[1727605485546,0.449092,65527.0,65526.0,0.27405397]
[1727605486438,0.449092,65527.0,65526.0,0.21488636]
[1727605486439,0.525384,65527.0,65526.0,0.21488636]
[1727605486749,0.076294,65526.0,65525.0,0.0036]
[1727605487049,0.096294,65526.0,65525.0,0.21450007]
[1727605487939,0.097294,65526.0,65525.0,0.21450007]
[1727605488346,0.098294,65526.0,65525.0,0.18938797]
[1727605488550,0.098294,65526.0,65525.0,0.09785758]
[1727605490040,0.459094,65526.0,65525.0,0.09785758]
[1727605490639,0.459094,65526.0,65525.0,0.12468406]
[1727605491852,0.098294,65526.0,65525.0,0.12468406]
[1727605492047,0.459094,65526.0,65525.0,0.12468406]
[1727605492244,0.098294,65526.0,65525.0,0.12468406]
[1727605492446,0.459094,65526.0,65525.0,0.12468406]
[1727605493041,0.098294,65526.0,65525.0,0.12468406]
[1727605493652,0.459094,65526.0,65525.0,0.12468406]
[1727605494245,0.098294,65526.0,65525.0,0.12468406]
[1727605494446,0.459094,65526.0,65525.0,0.12468406]
[1727605495754,0.098294,65526.0,65525.0,0.12468406]
[1727605496049,0.49887918,65526.0,65525.0,0.02682648]
[1727605496255,0.076297,65523.0,65522.0,0.00228926]
[1727605496557,0.437097,65523.0,65522.0,0.00228926]
[1727605497460,0.439097,65523.0,65522.0,0.00228926]
[1727605497641,0.439097,65523.0,65522.0,0.07858726]
[1727605500347,0.078297,65523.0,65522.0,0.07858726]
[1727605500655,0.439097,65523.0,65522.0,0.07858726]
[1727605500956,0.078297,65523.0,65522.0,0.10672758]
[1727605501159,0.439097,65523.0,65522.0,0.10672758]
[1727605501554,0.078297,65523.0,65522.0,0.10672758]
[1727605502063,0.439097,65523.0,65522.0,0.10672758]
[1727605502850,0.078297,65523.0,65522.0,0.10672758]
[1727605503053,0.439097,65523.0,65522.0,0.20453073]
[1727605503858,0.449097,65523.0,65522.0,0.20453073]
[1727605506052,0.448097,65523.0,65522.0,0.20453073]
[1727605506451,0.438097,65523.0,65522.0,0.20453073]
[1727605506858,0.077297,65523.0,65522.0,0.20453073]
[1727605507166,0.077297,65523.0,65522.0,0.10009241]
[1727605507167,0.448097,65523.0,65522.0,0.10009241]
[1727605507459,0.448097,65523.0,65522.0,0.19158029]
[1727605509163,0.448097,65523.0,65522.0,0.10019893]
[1727605510561,0.087297,65523.0,65522.0,0.10019893]
[1727605510756,0.448097,65523.0,65522.0,0.10019893]
[1727605511057,0.448097,65523.0,65522.0,0.00228926]
[1727605515069,0.076298,65522.0,65521.0,0.0036]
[1727605515269,0.01,65522.0,65520.0,0.0763]
[1727605515561,0.076299,65521.0,65520.0,0.0763]
[1727605515762,0.086299,65521.0,65520.0,0.0763]
[1727605516762,0.076301,65520.0,65519.0,0.04575347]
[1727605516963,0.086301,65520.0,65519.0,0.04575347]
[1727605518058,0.086301,65520.0,65519.0,0.21486904]
[1727605518561,0.076302,65519.0,65518.0,0.02758235]
[1727605518753,0.086302,65519.0,65518.0,0.21499098]
[1727605519464,0.447102,65519.0,65518.0,0.21499098]
[1727605519955,0.448102,65519.0,65518.0,0.21499098]
[1727605520566,0.449102,65519.0,65518.0,0.21499098]
[1727605526265,0.076303,65518.0,65517.0,0.10718988]
[1727605526471,0.16190109,65518.0,65517.0,0.10358988]
[1727605527171,0.52270109,65518.0,65517.0,0.10358988]
[1727605527374,0.52370109,65518.0,65517.0,0.10358988]
[1727605528877,0.52470109,65518.0,65517.0,0.10358988]
[1727605533171,0.439103,65518.0,65517.0,0.31858936]
[1727605533975,0.3628,65518.0,65517.0,0.31858936]
[1727605534175,0.439103,65518.0,65517.0,0.31858936]
[1727605536673,0.449103,65518.0,65517.0,0.31858936]
[1727605537873,0.449103,65518.0,65517.0,0.31778327]
[1727605539677,0.439103,65518.0,65517.0,0.31778327]
[1727605542677,0.439103,65518.0,65517.0,0.31783714]
[1727605547587,0.439103,65518.0,65517.0,0.31789532]
[1727605548183,0.439103,65518.0,65517.0,0.10358988]
[1727605554888,0.43910282,65518.0,65517.0,0.10358988]
[1727605555303,0.36279982,65518.0,65517.0,0.10358988]
[1727605555506,0.36279982,65518.0,65517.0,0.14358988]
[1727605556205,0.36279982,65518.0,65517.0,0.49284379]
[1727605556508,0.36279982,65518.0,65517.0,0.35767707]
[1727605557598,0.36279982,65518.0,65517.0,0.49278783]
[1727605558304,0.36279982,65518.0,65517.0,0.5996283]
[1727605559507,0.36279982,65518.0,65517.0,0.35767707]
[1727605560810,0.36279982,65518.0,65517.0,0.2012591]
[1727605561113,0.36279982,65518.0,65517.0,0.20115997]
[1727605561515,0.36279982,65518.0,65517.0,0.26319421]
[1727605563320,0.36279982,65518.0,65517.0,0.16562412]
[1727605566309,0.36279982,65518.0,65517.0,0.10358988]
[1727605566916,0.36279982,65518.0,65517.0,0.1493627]
[1727605567522,0.00199982,65518.0,65517.0,0.1493627]
[1727605568315,0.00199982,65518.0,65517.0,0.18753724]
[1727605568520,0.00239982,65518.0,65517.0,0.18753724]
[1727605568914,0.00239982,65518.0,65517.0,0.21139633]
[1727605571216,0.00239982,65518.0,65517.0,0.37945122]
[1727605571417,0.00239982,65518.0,65517.0,0.38945122]
[1727605571721,0.3608,65520.0,65519.0,0.076302]
[1727605572024,0.3608,65520.0,65519.0,0.29052971]
[1727605572814,0.3618,65520.0,65519.0,0.29052971]
[1727605573523,0.3628,65520.0,65519.0,0.29052971]
[1727605575119,0.3628,65520.0,65519.0,0.29052462]
[1727605579431,0.3628,65520.0,65519.0,0.17425052]
[1727605579817,0.3628,65520.0,65519.0,0.17426217]
[1727605583438,0.3628,65520.0,65519.0,0.2905788]
[1727605583731,0.3728,65520.0,65519.0,0.2905788]
[1727605584130,0.3728,65520.0,65519.0,0.29060264]
[1727605584433,0.3628,65520.0,65519.0,0.29061471]
[1727605584632,0.3628,65520.0,65519.0,0.29062485]
[1727605586434,0.40307258,65520.0,65519.0,0.076702]
[1727605587229,0.04227258,65520.0,65519.0,0.076702]
[1727605587528,0.40307258,65520.0,65519.0,0.076702]
[1727605587838,0.41307258,65520.0,65519.0,0.076702]
[1727605588538,0.05227258,65520.0,65519.0,0.076702]
[1727605588838,0.41307258,65520.0,65519.0,0.076702]
[1727605589438,0.41307553,65520.0,65519.0,0.076702]
[1727605589738,0.3728,65520.0,65519.0,0.076702]
[1727605589938,0.449101,65520.0,65519.0,0.076702]
[1727605590531,0.48937597,65520.0,65519.0,0.076702]
[1727605591034,0.12857597,65520.0,65519.0,0.076702]
[1727605591337,0.48937597,65520.0,65519.0,0.076702]
[1727605591540,0.12857597,65520.0,65519.0,0.076702]
[1727605591834,0.449101,65520.0,65519.0,0.076702]
[1727605592140,0.088301,65520.0,65519.0,0.076702]
[1727605592530,0.449101,65520.0,65519.0,0.076702]
[1727605592731,0.088301,65520.0,65519.0,0.076702]
[1727605592940,0.449101,65520.0,65519.0,0.076702]
[1727605593442,0.088301,65520.0,65519.0,0.29071209]
[1727605593944,0.449101,65520.0,65519.0,0.29071209]
[1727605594133,0.088301,65520.0,65519.0,0.29071209]
[1727605594441,0.449101,65520.0,65519.0,0.29071221]
[1727605595440,0.088301,65520.0,65519.0,0.29071221]
[1727605596234,0.088301,65520.0,65519.0,0.0980341]
[1727605596235,0.449101,65520.0,65519.0,0.0980341]
[1727605597428,0.448101,65520.0,65519.0,0.0980341]
[1727605597836,0.448101,65520.0,65519.0,0.0990341]
[1727605598142,0.448101,65520.0,65519.0,0.07768398]
[1727605599133,0.448101,65520.0,65519.0,0.0014]
[1727605600435,0.61040865,65520.0,65519.0,0.0014]
[1727605600740,0.89490765,65520.0,65519.0,0.0014]
[1727605601840,0.97120865,65520.0,65519.0,0.0014]
[1727605603034,1.01651046,65520.0,65519.0,0.0014]
[1727605603342,0.89490765,65520.0,65519.0,0.0014]
[1727605603847,0.97109737,65520.0,65519.0,0.0014]
[1727605604746,0.89479637,65520.0,65519.0,0.0014]
[1727605604940,0.97109737,65520.0,65519.0,0.0014]
[1727605605849,0.24949737,65520.0,65519.0,0.0014]
[1727605606047,0.97109737,65520.0,65519.0,0.0014]
[1727605606743,0.97109737,65520.0,65519.0,0.00068596]
[1727605608437,0.885202,65520.0,65519.0,0.00068596]
[1727605611258,0.885202,65520.0,65519.0,0.04640565]
[1727605611453,0.076304,65517.0,65516.0,0.06130817]
[1727605611749,0.096304,65517.0,65516.0,0.00030175]
[1727605613250,0.172608,65517.0,65516.0,0.00030175]
[1727605614248,0.200608,65517.0,65516.0,0.00030175]
[1727605616444,0.2864938,65517.0,65516.0,0.00030175]
[1727605616953,0.3179938,65517.0,65516.0,0.00030175]
[1727605617260,1.0395938,65517.0,65516.0,0.00030175]
[1727605617858,1.03959783,65517.0,65516.0,0.00030175]
[1727605621263,1.03966139,65517.0,65516.0,0.00030175]
[1727605622962,0.93185739,65517.0,65516.0,0.00030175]
[1727605623467,0.845904,65517.0,65516.0,0.00030175]
[1727605624557,0.124304,65517.0,65516.0,0.00030175]
[1727605624759,0.845904,65517.0,65516.0,0.00030175]
[1727605625458,0.124304,65517.0,65516.0,0.00030175]
[1727605625761,0.845904,65517.0,65516.0,0.00030175]
[1727605625962,0.845904,65517.0,65516.0,0.06130817]
[1727605626271,0.845904,65517.0,65516.0,0.00030175]
[1727605626870,0.825904,65517.0,65516.0,0.00030175]
[1727605627266,0.825904,65517.0,65516.0,0.07660675]
[1727605628768,0.825904,65517.0,65516.0,0.15289073]
[1727605629069,0.825904,65517.0,65516.0,0.25044035]
[1727605629459,0.825904,65517.0,65516.0,0.15289073]
[1727605630058,0.825904,65517.0,65516.0,0.17414924]
[1727605630260,0.835904,65517.0,65516.0,0.00030175]
[1727605630458,0.825904,65517.0,65516.0,0.00030175]
[1727605634270,0.825904,65517.0,65516.0,0.07658573]
[1727605634970,0.825904,65517.0,65516.0,0.04158573]
[1727605636968,0.835904,65517.0,65516.0,0.04158573]
[1727605637169,0.825904,65517.0,65516.0,0.13900032]
[1727605638379,0.825904,65517.0,65516.0,0.04158573]
[1727605638578,0.825904,65517.0,65514.0,0.0635]
[1727605638579,0.076306,65515.0,65514.0,0.04200807]
[1727605638971,0.16338879,65515.0,65514.0,0.04200807]
[1727605639878,0.17738879,65515.0,65514.0,0.04200807]
[1727605640082,0.19138879,65515.0,65514.0,0.04200807]
[1727605644774,0.19087337,65515.0,65514.0,0.04200807]
[1727605645279,0.31236232,65515.0,65514.0,0.04200807]
[1727605645475,0.22579495,65515.0,65514.0,0.13967173]
[1727605645780,0.104306,65515.0,65514.0,0.13967173]
[1727605647483,0.104306,65515.0,65514.0,0.21597973]
[1727605647877,0.104306,65515.0,65514.0,0.33215855]
[1727605651984,0.465106,65515.0,65514.0,0.33215855]
[1727605652184,0.104306,65515.0,65514.0,0.33189089]
[1727605652385,0.465106,65515.0,65514.0,0.33189089]
[1727605653487,0.55233203,65515.0,65514.0,0.11831607]
[1727605654392,0.55233689,65515.0,65514.0,0.11831607]
[1727605656295,0.42916511,65515.0,65514.0,0.15831607]
[1727605656485,0.53550706,65515.0,65514.0,0.15831607]
[1727605656793,0.42916511,65515.0,65514.0,0.15831607]
[1727605657095,0.53550706,65515.0,65514.0,0.15831607]
[1727605657285,0.42916511,65515.0,65514.0,0.15831607]
[1727605659190,0.42916511,65515.0,65514.0,0.11831607]
[1727605660487,0.3888,65515.0,65514.0,0.33142916]
[1727605660689,0.3888,65515.0,65514.0,0.78934916]
[1727605661695,0.3888,65515.0,65514.0,1.48934916]
[1727605662285,0.3888,65515.0,65514.0,1.51320897]
[1727605662486,0.3888,65515.0,65514.0,1.48934916]
[1727605662786,0.3888,65515.0,65514.0,1.51320897]
[1727605663489,0.0036,65522.0,65521.0,0.076299]
[1727605663688,0.079894,65526.0,65521.0,0.09762482]
[1727605663894,0.079894,65526.0,65522.0,0.09762482]
[1727605664091,0.079894,65526.0,65525.0,0.076295]
[1727605664295,0.0355,65530.0,65525.0,0.18909444]
[1727605664491,0.0355,65530.0,65529.0,0.07669]
[1727605664693,0.0355,65530.0,65529.0,0.17391482]
[1727605664694,0.0319,65530.0,65529.0,0.17391482]
[1727605666595,0.0459,65530.0,65529.0,0.17491482]
[1727605666796,0.0599,65530.0,65529.0,0.17591482]
[1727605668400,0.0599,65530.0,65529.0,0.25205447]
[1727605668703,0.0599,65530.0,65529.0,0.13960162]
[1727605672503,0.0599,65530.0,65529.0,0.16647565]
[1727605675601,0.20283852,65530.0,65529.0,0.02922489]
[1727605675905,0.35482027,65530.0,65529.0,0.02922489]
[1727605676704,0.20283852,65530.0,65529.0,0.02922489]
[1727605677302,0.35482027,65530.0,65529.0,0.10551489]
[1727605677801,0.20283852,65530.0,65529.0,0.10551489]
[1727605678406,0.35482027,65530.0,65529.0,0.10551489]
[1727605679706,0.35482027,65530.0,65529.0,0.05082101]
[1727605679707,0.52184094,65530.0,65529.0,0.05082101]
[1727605679905,0.36985919,65530.0,65529.0,0.05082101]
[1727605680707,0.20283852,65530.0,65529.0,0.05082101]
[1727605680910,0.27912752,65530.0,65529.0,0.05082101]
[1727605681109,0.44614819,65530.0,65529.0,0.05082101]
[1727605681604,0.44221788,65530.0,65529.0,0.05082101]
[1727605682307,0.14614494,65530.0,65529.0,0.078781]
[1727605683712,0.0599,65530.0,65529.0,0.17629205]
[1727605687110,0.0599,65530.0,65529.0,0.26776167]
[1727605690618,0.19935659,65530.0,65529.0,0.00244175]
[1727605690805,0.56015659,65530.0,65525.0,0.004]
[1727605691006,0.13667379,65526.0,65525.0,0.004]
[1727605691318,0.13945659,65526.0,65525.0,0.0004]
[1727605691615,0.13985659,65526.0,65525.0,0.076695]
[1727605691808,0.13985659,65526.0,65525.0,0.10373941]
[1727605692915,0.15385659,65526.0,65525.0,0.10473941]
[1727605693617,0.15385659,65526.0,65525.0,0.10573941]
[1727605694210,0.30571546,65526.0,65525.0,0.10573941]
[1727605694410,0.266782,65526.0,65525.0,0.11573941]
[1727605694712,0.11492313,65526.0,65525.0,0.11573941]
[1727605695604,0.11377775,65526.0,65525.0,0.11573941]
[1727605698806,0.0284,65526.0,65525.0,0.33106657]
[1727605700510,0.0284,65526.0,65525.0,0.33107599]
[1727605701820,0.0284,65526.0,65525.0,0.25478099]
[1727605702120,0.0284,65526.0,65525.0,0.28978099]
[1727605705812,0.0284,65526.0,65525.0,0.07444441]
[1727605706017,0.11377898,65526.0,65525.0,0.07444441]
[1727605707219,0.19007298,65526.0,65525.0,0.07444441]
[1727605708721,0.19007298,65526.0,65525.0,0.06444441]
[1727605709515,0.24231095,65526.0,65525.0,0.03183267]
[1727605709812,0.24231095,65526.0,65525.0,0.06183267]
[1727605710319,0.35417378,65526.0,65525.0,0.06183267]
[1727605710523,0.39340165,65526.0,65525.0,0.06183267]
[1727605711315,0.39340165,65526.0,65525.0,0.08936669]
[1727605712228,0.24133018,65526.0,65525.0,0.08936669]
[1727605712416,0.2413497,65526.0,65525.0,0.08936669]
[1727605712615,0.25676908,65526.0,65525.0,0.08936669]
[1727605712817,0.2413497,65526.0,65525.0,0.08936669]
[1727605713924,0.05125625,65526.0,65525.0,0.44152502]
[1727605720831,0.05125625,65526.0,65525.0,0.18785131]
[1727605723934,0.05125625,65526.0,65525.0,0.15785131]
[1727605724735,0.05125625,65526.0,65525.0,0.13031729]
[1727605724933,0.05125625,65526.0,65525.0,0.20665645]
[1727605725129,0.05125625,65526.0,65525.0,0.10815429]
[1727605725332,0.05125625,65526.0,65525.0,0.03183267]
[1727605725527,0.08125625,65526.0,65525.0,0.03183267]
[1727605726331,0.05125625,65526.0,65525.0,0.10815429]
[1727605726736,0.05125625,65526.0,65525.0,0.20634674]
[1727605727033,0.05125625,65526.0,65525.0,0.10815429]
[1727605727235,0.05125625,65526.0,65525.0,0.03183267]
[1727605728831,0.076298,65522.0,65518.0,0.063009]
[1727605729037,0.13678207,65519.0,65518.0,0.093009]
[1727605729224,0.27435896,65519.0,65518.0,0.093009]
[1727605730137,0.27435896,65519.0,65518.0,0.094009]
[1727605730540,0.27435896,65519.0,65518.0,0.12302332]
[1727605730733,0.27435896,65519.0,65518.0,0.12202332]
[1727605731035,0.14064889,65519.0,65518.0,0.12302332]
[1727605731227,0.0893569,65519.0,65518.0,0.12302332]
[1727605731838,0.04349794,65519.0,65518.0,0.12302332]
[1727605732039,0.14058843,65519.0,65518.0,0.12202332]
[1727605732233,0.14558843,65519.0,65518.0,0.12302332]
[1727605732534,0.0943569,65519.0,65518.0,0.12302332]
[1727605732832,0.009,65519.0,65518.0,0.12302332]
[1727605733023,0.14560615,65519.0,65518.0,0.12302332]
[1727605733228,0.0943569,65519.0,65518.0,0.12302332]
[1727605733433,0.0943569,65519.0,65518.0,0.06001432]
[1727605734030,0.09280868,65519.0,65518.0,0.06001432]
[1727605734935,0.28086325,65519.0,65518.0,0.06001432]
[1727605735133,0.35716525,65519.0,65518.0,0.06001432]
[1727605735341,0.35716525,65519.0,65518.0,0.03001432]
[1727605735837,0.21308407,65519.0,65518.0,0.24645192]
[1727605736028,0.21308407,65519.0,65518.0,0.35331866]
[1727605736225,0.21308407,65519.0,65518.0,0.24645192]
[1727605737533,0.21308407,65519.0,65518.0,0.30848529]
[1727605738238,0.21308407,65519.0,65518.0,0.24645192]
[1727605738845,0.21308407,65519.0,65518.0,0.24630452]
[1727605740642,0.076302,65519.0,65518.0,0.24630452]
[1727605740942,0.076302,65519.0,65518.0,0.30833806]
[1727605741738,0.076302,65519.0,65518.0,0.4152048]
[1727605742039,0.076302,65519.0,65518.0,0.30833806]
[1727605742436,0.076302,65519.0,65518.0,0.4152048]
[1727605742738,0.076302,65519.0,65518.0,0.30833806]
[1727605743837,0.3608,65521.0,65518.0,0.09204786]
[1727605744033,0.076302,65519.0,65518.0,0.09204786]
[1727605744937,0.162604,65519.0,65518.0,0.09204786]
[1727605745834,0.162604,65519.0,65518.0,0.05287337]
[1727605746036,0.523404,65519.0,65518.0,0.05387337]
[1727605747840,0.56248414,65519.0,65518.0,0.05387337]
[1727605748643,0.56248414,65519.0,65518.0,0.03001432]
[1727605751048,0.523404,65519.0,65518.0,0.24580357]
[1727605751631,0.523404,65519.0,65518.0,0.24581102]
[1727605754739,0.437102,65519.0,65518.0,0.24581102]
[1727605759045,0.5215854,65519.0,65518.0,0.03001432]
[1727605760143,0.5315854,65519.0,65518.0,0.03001432]
[1727605760452,0.1707854,65519.0,65518.0,0.03001432]
[1727605760642,0.5315854,65519.0,65518.0,0.03001432]
[1727605761447,0.53156838,65519.0,65518.0,0.03001432]
[1727605761651,0.17076838,65519.0,65518.0,0.03001432]
[1727605762051,0.53156838,65519.0,65518.0,0.03001432]
[1727605763649,0.17076838,65519.0,65518.0,0.03001432]
[1727605763955,0.53156838,65519.0,65518.0,0.03001432]
[1727605764855,0.17076838,65519.0,65518.0,0.03001432]
[1727605765352,0.53156838,65519.0,65518.0,0.03001432]
[1727605765552,0.17076838,65519.0,65518.0,0.03001432]
[1727605765747,0.53156838,65519.0,65518.0,0.03001432]
[1727605765947,0.447102,65519.0,65518.0,0.24594397]
[1727605766651,0.086302,65519.0,65518.0,0.24594397]
[1727605766842,0.447102,65519.0,65518.0,0.24594397]
[1727605767359,0.086302,65519.0,65518.0,0.24594397]
[1727605767558,0.447102,65519.0,65518.0,0.24594397]
[1727605767759,0.086302,65519.0,65518.0,0.24594397]
[1727605767952,0.447102,65519.0,65518.0,0.24594397]
[1727605768151,0.086302,65519.0,65518.0,0.24594397]
[1727605768760,0.447102,65519.0,65518.0,0.24594397]
[1727605769262,0.086302,65519.0,65518.0,0.24594397]
[1727605769561,0.447102,65519.0,65518.0,0.24594397]
[1727605771261,0.447102,65519.0,65518.0,0.24597798]
[1727605772463,0.086302,65519.0,65518.0,0.24597798]
[1727605773064,0.447102,65519.0,65518.0,0.24597798]
[1727605774067,0.22250756,65519.0,65518.0,0.03001432]
[1727605774565,0.65960956,65519.0,65518.0,0.03001432]
[1727605775458,0.29880956,65519.0,65518.0,0.03001432]
[1727605775667,0.65960956,65519.0,65518.0,0.03001432]
[1727605776170,0.65964447,65519.0,65518.0,0.03001432]
[1727605776964,0.22254247,65519.0,65518.0,0.03001432]
[1727605777171,0.58334247,65519.0,65518.0,0.03001432]
[1727605777770,0.22254247,65519.0,65518.0,0.03001432]
[1727605777970,0.56251826,65519.0,65518.0,0.03001432]
[1727605778869,0.20171826,65519.0,65518.0,0.03001432]
[1727605779070,0.56251826,65519.0,65518.0,0.03001432]
[1727605779680,0.48621626,65519.0,65518.0,0.03001432]
[1727605779875,0.12541626,65519.0,65518.0,0.03001432]
[1727605780182,0.48621626,65519.0,65518.0,0.03001432]
[1727605780567,0.12541626,65519.0,65518.0,0.03001432]
[1727605780973,0.447102,65519.0,65518.0,0.22022235]
[1727605781179,0.086302,65519.0,65518.0,0.22022235]
[1727605781380,0.447102,65519.0,65518.0,0.22022235]
[1727605781683,0.086302,65519.0,65518.0,0.22022235]
[1727605781883,0.447102,65519.0,65518.0,0.22022235]
[1727605782478,0.086302,65519.0,65518.0,0.22022235]
[1727605782683,0.447102,65519.0,65518.0,0.22022235]
[1727605784682,0.086302,65519.0,65518.0,0.22022235]
[1727605784884,0.447102,65519.0,65518.0,0.22022235]
[1727605785881,0.447102,65519.0,65518.0,0.12862425]
[1727605786082,0.447102,65519.0,65518.0,0.24616176]
[1727605787577,0.086302,65519.0,65518.0,0.24616176]
[1727605787783,0.447102,65519.0,65518.0,0.24616176]
[1727605789686,0.086302,65519.0,65518.0,0.24616176]
[1727605789887,0.447102,65519.0,65518.0,0.24616176]
[1727605790087,0.086302,65519.0,65518.0,0.24616176]
[1727605790384,0.447102,65519.0,65518.0,0.24616176]
[1727605790578,0.447102,65519.0,65518.0,0.24615185]
[1727605790784,0.523404,65519.0,65518.0,0.24615185]
[1727605792187,0.447102,65519.0,65518.0,0.24615185]
[1727605793077,0.086302,65519.0,65518.0,0.24615185]
[1727605793688,0.447102,65519.0,65518.0,0.24615185]
[1727605794092,0.086302,65519.0,65518.0,0.24615185]
[1727605794286,0.447102,65519.0,65518.0,0.24615185]
[1727605794481,0.086302,65519.0,65518.0,0.24615185]
[1727605795188,0.437102,65519.0,65518.0,0.24615185]
[1727605795784,0.447102,65519.0,65518.0,0.24615185]
[1727605795980,0.447102,65519.0,65518.0,0.03001432]
[1727605795981,0.58328502,65519.0,65518.0,0.03001432]
[1727605797595,0.22248502,65519.0,65518.0,0.03001432]
[1727605797796,0.58328502,65519.0,65518.0,0.03001432]
[1727605799094,0.53159411,65519.0,65518.0,0.03001432]
[1727605799594,0.17079411,65519.0,65518.0,0.03001432]
[1727605799895,0.53159411,65519.0,65518.0,0.03001432]
[1727605800492,0.52159686,65519.0,65518.0,0.03001432]
[1727605800696,0.57328971,65519.0,65518.0,0.03001432]
[1727605803199,0.21248971,65519.0,65518.0,0.03001432]
[1727605803391,0.57328971,65519.0,65518.0,0.03001432]
[1727605803998,0.437102,65519.0,65518.0,0.2462016]
[1727605804388,0.3608,65519.0,65518.0,0.2462016]
[1727605805202,0.437102,65519.0,65518.0,0.2462016]
[1727605808495,0.437102,65519.0,65518.0,0.24504763]
[1727605809792,0.447102,65519.0,65518.0,0.24504763]
[1727605814894,0.447102,65519.0,65518.0,0.21703331]
[1727605815104,0.447102,65519.0,65518.0,0.19167736]
[1727605817400,0.086302,65519.0,65518.0,0.19167736]
[1727605817593,0.447102,65519.0,65518.0,0.19167736]
[1727605817796,0.086302,65519.0,65518.0,0.19167736]
[1727605818008,0.447102,65519.0,65518.0,0.19174617]
[1727605818301,0.086302,65519.0,65518.0,0.19174617]
[1727605818607,0.447102,65519.0,65518.0,0.19174617]
[1727605818807,0.086302,65519.0,65518.0,0.19174617]
[1727605819018,0.447102,65519.0,65518.0,0.21715258]
[1727605819203,0.48668717,65519.0,65518.0,0.002]
[1727605819505,0.12588717,65519.0,65518.0,0.002]
[1727605819902,0.48668717,65519.0,65518.0,0.002]
[1727605820605,0.12588717,65519.0,65518.0,0.002]
[1727605821111,0.48668717,65519.0,65518.0,0.002]
[1727605822805,0.48668085,65519.0,65518.0,0.002]
[1727605823615,0.447102,65519.0,65518.0,0.002]
[1727605823798,0.086302,65519.0,65518.0,0.002]
[1727605824193,0.447102,65519.0,65518.0,0.002]
[1727605824795,0.086302,65519.0,65518.0,0.002]
[1727605825208,0.447102,65519.0,65518.0,0.002]
[1727605825409,0.086302,65519.0,65518.0,0.002]
[1727605825803,0.447102,65519.0,65518.0,0.002]
[1727605826002,0.086302,65519.0,65518.0,0.002]
[1727605826207,0.447102,65519.0,65518.0,0.10013396]
[1727605826711,0.086302,65519.0,65518.0,0.10013396]
[1727605826909,0.447102,65519.0,65518.0,0.10013396]
[1727605827612,0.447102,65519.0,65518.0,0.10014914]
[1727605828614,0.447102,65519.0,65518.0,0.21712329]
[1727605828918,0.086302,65519.0,65518.0,0.21712329]
[1727605829311,0.447102,65519.0,65518.0,0.21712329]
[1727605830519,0.086302,65519.0,65518.0,0.21712329]
[1727605830716,0.447102,65519.0,65518.0,0.21712329]
[1727605830902,0.086302,65519.0,65518.0,0.21712329]
[1727605831105,0.447102,65519.0,65518.0,0.21712329]
[1727605832416,0.447102,65519.0,65518.0,0.21708971]
[1727605832613,0.447102,65519.0,65518.0,0.21709062]
[1727605833134,0.086302,65519.0,65518.0,0.21709062]
[1727605833623,0.447102,65519.0,65518.0,0.21709062]
[1727605834119,0.65438504,65519.0,65518.0,0.002]
[1727605834613,0.58514355,65519.0,65518.0,0.002]
[1727605834827,0.66144503,65519.0,65518.0,0.00098725]
[1727605837213,0.66011608,65519.0,65518.0,0.00098725]
[1727605839616,1.02091608,65519.0,65518.0,0.00098725]
[1727605840821,0.29931608,65519.0,65518.0,0.00098725]
[1727605841023,1.02091608,65519.0,65518.0,0.00098725]
[1727605841221,0.884204,65519.0,65518.0,0.09933786]
[1727605841928,0.884204,65519.0,65518.0,0.09933355]
[1727605842425,0.807902,65519.0,65518.0,0.09933355]
[1727605842629,0.884204,65519.0,65518.0,0.09933355]
[1727605846020,0.162604,65519.0,65518.0,0.09933355]
[1727605846221,0.884204,65519.0,65518.0,0.09933355]
[1727605847230,0.807902,65519.0,65518.0,0.09933355]
[1727605847430,0.884204,65519.0,65518.0,0.09933355]
[1727605847622,0.162604,65519.0,65518.0,0.09933355]
[1727605847821,0.523404,65519.0,65518.0,0.09933355]
[1727605848032,0.447102,65519.0,65518.0,0.09933355]
[1727605848730,0.523404,65519.0,65518.0,0.09933355]
[1727605849125,0.66905377,65519.0,65518.0,0.00098725]
[1727605850333,0.56273949,65519.0,65518.0,0.00098725]
[1727605850537,0.66905377,65519.0,65518.0,0.00098725]
[1727605850839,0.56273949,65519.0,65518.0,0.00098725]
[1727605851337,0.66905377,65519.0,65518.0,0.00098725]
[1727605852035,0.60840221,65519.0,65518.0,0.00098725]
[1727605852730,0.24760221,65519.0,65518.0,0.00098725]
[1727605852933,0.60840221,65519.0,65518.0,0.00098725]
[1727605853128,0.447102,65519.0,65518.0,0.00098725]
[1727605853434,0.523404,65519.0,65518.0,0.00098725]
[1727605854634,0.162604,65519.0,65518.0,0.00098725]
[1727605855337,0.523404,65519.0,65518.0,0.00098725]
[1727605856140,0.162604,65519.0,65518.0,0.00098725]
[1727605856340,0.162604,65519.0,65518.0,0.07725143]
[1727605856536,0.523404,65519.0,65518.0,0.17553665]
[1727605857039,0.162604,65519.0,65518.0,0.17553665]
[1727605857247,0.523404,65519.0,65518.0,0.17553665]
[1727605857541,0.162604,65519.0,65518.0,0.17553665]
[1727605857733,0.523404,65519.0,65518.0,0.17553665]
[1727605858233,0.162604,65519.0,65518.0,0.17553665]
[1727605858437,0.523404,65519.0,65518.0,0.17553665]
[1727605859339,0.447102,65519.0,65518.0,0.17553665]
[1727605859538,0.447102,65519.0,65518.0,0.09927247]
[1727605861038,0.086302,65519.0,65518.0,0.09927247]
[1727605861435,0.447102,65519.0,65518.0,0.09927247]
[1727605861736,0.447102,65519.0,65518.0,0.19086556]
[1727605861937,0.086302,65519.0,65518.0,0.19086556]
[1727605862747,0.447102,65519.0,65518.0,0.19086556]
[1727605863245,0.66072578,65519.0,65518.0,0.00098725]
[1727605863450,0.43661557,65519.0,65518.0,0.00098725]
[1727605863646,0.79741557,65519.0,65518.0,0.00098725]
[1727605864245,0.43661557,65519.0,65518.0,0.00098725]
[1727605864654,0.7974751,65519.0,65518.0,0.00098725]
[1727605864951,0.7211731,65519.0,65518.0,0.00098725]
[1727605865656,0.3603731,65519.0,65518.0,0.00098725]
[1727605865845,0.7211731,65519.0,65518.0,0.00098725]
[1727605866149,0.3603731,65519.0,65518.0,0.00098725]
[1727605866344,0.7211731,65519.0,65518.0,0.00098725]
[1727605866651,0.4366751,65519.0,65518.0,0.00098725]
[1727605867044,0.7974751,65519.0,65518.0,0.00098725]
[1727605867246,0.7211731,65519.0,65518.0,0.00098725]
[1727605868449,0.3603731,65519.0,65518.0,0.00098725]